bitfinex/quotes_ETHUSD_20241009
["timestamp","ask_amount","ask_price","bid_price","bid_amount"]
[1728469653715,0.06246389,2433.1,2432.8,4.11038]
[1728469654141,4.92585389,2433.1,2432.7,4.88454]
[1728469655178,4.92585389,2433.1,2432.7,4.11064]
[1728469655786,1.75454175,2433.0,2432.6,4.90522]
[1728469656117,1.81701167,2433.0,2432.6,9.01596]
[1728469657416,1.81701167,2433.0,2432.6,4.11072]
[1728469657578,1.81701167,2433.0,2432.5,4.11096]
[1728469657779,4.11032,2432.9,2432.5,4.11096]
[1728469658002,4.1727796,2432.9,2432.5,4.11096]
[1728469664947,0.822,2432.8,2432.5,4.11096]
[1728469665414,0.88414141,2432.8,2432.5,4.11096]
[1728469670248,0.88414141,2432.8,2432.6,4.11082]
[1728469677454,2.63868316,2432.8,2432.6,4.11082]
[1728469684987,2.63868316,2432.8,2432.5,4.11096]
[1728469685158,2.63868316,2432.8,2432.6,4.11074]
[1728469686598,2.63868316,2432.8,2432.5,4.11098]
[1728469687299,0.7899,2432.5,2432.0,0.78]
[1728469687598,1.75454175,2432.2,2431.9,4.11184]
[1728469687808,2.54444175,2432.2,2431.9,4.11187]
[1728469687977,0.06190478,2432.1,2431.9,4.11187]
[1728469689403,1.75454175,2432.0,2431.6,4.92857]
[1728469689613,1.8164257,2432.0,2431.7,4.11234]
[1728469689796,1.8164257,2432.0,2431.6,4.92857]
[1728469690668,1.8164257,2432.0,2431.6,4.92854]
[1728469690869,1.8164257,2432.0,2431.6,9.04096]
[1728469691398,1.8164257,2432.0,2431.6,9.04093]
[1728469692171,1.8164257,2432.0,2431.7,4.11234]
[1728469693204,1.8164257,2432.0,2431.6,4.92851]
[1728469693596,1.8164257,2432.0,2431.6,9.04095]
[1728469693795,1.8164257,2432.0,2431.6,9.04093]
[1728469695406,1.8164257,2432.0,2431.7,4.11232]
[1728469698594,1.8164257,2432.0,2431.6,9.04094]
[1728469699288,1.8164257,2432.0,2431.7,4.11226]
[1728469702712,1.8164257,2432.0,2431.7,8.22451]
[1728469702915,1.8164257,2432.0,2431.7,8.2245]
[1728469703117,1.8164257,2432.0,2431.7,4.11225]
[1728469703319,1.8164257,2432.0,2431.8,4.11214]
[1728469706317,1.8164257,2432.0,2431.6,0.8161]
[1728469706522,1.75454175,2431.8,2431.5,4.11259]
[1728469706824,0.06148007,2431.7,2431.5,4.11259]
[1728469707039,1.75454175,2431.8,2431.5,4.11259]
[1728469707196,0.06146761,2431.6,2431.5,4.11259]
[1728469707397,1.75454175,2431.8,2431.5,4.11259]
[1728469707597,0.06146761,2431.6,2431.5,4.11259]
[1728469707835,1.75454175,2431.8,2431.5,4.11259]
[1728469708128,0.06147162,2431.6,2431.5,4.11259]
[1728469708331,1.75454175,2431.8,2431.5,4.11259]
[1728469708500,0.06147964,2431.6,2431.5,4.11259]
[1728469708827,5.86674175,2431.8,2431.4,4.93958]
[1728469709139,0.06147964,2431.6,2431.4,4.93958]
[1728469709331,5.86674175,2431.8,2431.4,4.11278]
[1728469709818,0.06149611,2431.7,2431.4,4.11278]
[1728469710127,1.75454175,2431.8,2431.4,4.11278]
[1728469710330,0.0614636,2431.6,2431.4,4.11278]
[1728469710531,1.75454175,2431.8,2431.4,4.11278]
[1728469710831,0.06148007,2431.7,2431.4,4.11278]
[1728469711033,1.75454175,2431.8,2431.4,4.11278]
[1728469711243,0.06146761,2431.6,2431.5,4.11268]
[1728469711543,1.75454175,2431.8,2431.5,4.11268]
[1728469711715,0.06147162,2431.6,2431.5,4.11268]
[1728469711911,1.75454175,2431.8,2431.5,4.11268]
[1728469712107,0.06147162,2431.6,2431.5,4.11268]
[1728469712310,1.75454175,2431.8,2431.5,8.22524]
[1728469712513,0.06147563,2431.6,2431.5,8.22524]
[1728469712834,0.06147563,2431.6,2431.5,4.11256]
[1728469713042,1.75454175,2431.8,2431.5,4.90566]
[1728469713208,0.06147348,2431.6,2431.5,4.90566]
[1728469713407,1.75454175,2431.8,2431.5,4.90566]
[1728469713607,0.7933,2432.2,2431.7,4.11221]
[1728469713812,1.75454175,2432.0,2431.8,4.1121]
[1728469717227,1.75454175,2432.0,2431.8,4.9009]
[1728469717414,1.75454175,2432.0,2431.9,4.11201]
[1728469719411,0.7933,2432.2,2432.0,4.11183]
[1728469719648,0.42940946,2432.3,2432.0,4.11183]
[1728469719809,0.06145056,2432.1,2432.0,4.11183]
[1728469720014,0.42940946,2432.3,2431.9,5.013301]
[1728469720222,0.42940946,2432.3,2432.0,4.11184]
[1728469720223,0.06145457,2432.1,2432.0,4.11184]
[1728469720425,0.42940946,2432.3,2432.0,4.99698774]
[1728469720646,0.06145457,2432.1,2432.0,4.99698774]
[1728469720851,0.42940946,2432.3,2432.0,4.99698774]
[1728469721042,0.42940946,2432.3,2432.1,4.11166]
[1728469721356,0.42940946,2432.3,2432.0,4.11182]
[1728469722947,1.75454175,2432.2,2431.9,4.11197]
[1728469724452,0.42940946,2432.3,2431.8,0.7888]
[1728469724453,1.75454175,2432.0,2431.8,0.7888]
[1728469724614,1.75454175,2432.0,2431.8,4.90095]
[1728469724814,1.75454175,2432.0,2431.8,4.11215]
[1728469725523,1.75454175,2432.0,2431.8,8.2243]
[1728469727718,1.75454175,2432.0,2431.9,4.11201]
[1728469730773,0.42940916,2432.1,2431.9,4.11201]
[1728469730982,0.42940916,2432.1,2432.0,4.11184]
[1728469732165,0.42940916,2432.1,2431.9,4.92291]
[1728469732166,0.42940916,2432.1,2431.9,0.8109]
[1728469732479,0.7941,2432.0,2431.6,4.11243]
[1728469732634,1.75454175,2431.9,2431.7,4.11229]
[1728469733375,2.18395091,2432.1,2431.8,4.11218]
[1728469734261,0.42940916,2432.1,2431.8,4.11218]
[1728469734853,0.061482,2432.0,2431.8,4.11218]
[1728469739112,0.061482,2432.0,2431.9,4.11201]
[1728469739311,0.061482,2432.0,2431.8,4.87098]
[1728469739508,0.061482,2432.0,2431.9,4.11201]
[1728469740410,0.06144755,2432.0,2431.9,4.11201]
[1728469740597,2.54864175,2432.2,2431.9,4.11201]
[1728469740775,0.06144354,2432.0,2431.9,4.11201]
[1728469741147,1.75454175,2432.2,2431.9,4.11201]
[1728469741614,0.06147203,2432.1,2431.9,4.11201]
[1728469742807,0.06147203,2432.1,2432.0,4.11184]
[1728469743036,0.06147203,2432.1,2432.0,4.98086667]
[1728469743187,1.75454175,2432.8,2432.5,4.11092]
[1728469743690,0.20671078,2432.9,2432.6,4.11067]
[1728469744002,14.14230175,2433.1,2432.7,4.11056]
[1728469744318,14.14230175,2433.1,2432.7,4.11064]
[1728469744471,10.03224175,2433.1,2432.6,0.8024]
[1728469744668,10.03224175,2433.1,2432.6,4.9132]
[1728469744938,14.14223175,2433.1,2432.7,4.11057]
[1728469745113,10.03224175,2433.1,2432.7,4.11057]
[1728469745472,1.75454175,2433.4,2433.0,4.11006]
[1728469745905,1.75454175,2433.4,2433.0,8.22012]
[1728469746105,1.75454175,2433.4,2433.1,4.10994]
[1728469746482,1.75454175,2433.4,2433.0,4.11006]
[1728469746688,1.75454175,2433.4,2433.1,0.0821947]
[1728469746888,1.75454175,2433.4,2432.8,0.8278]
[1728469747113,1.75454175,2433.4,2433.0,4.11014]
[1728469747614,4.10941,2433.5,2433.0,4.11014]
[1728469747615,1.75454175,2433.2,2433.0,4.11014]
[1728469747971,1.75454175,2433.2,2433.0,4.11006]
[1728469748176,1.75454175,2433.2,2433.0,8.713906]
[1728469748397,1.75454175,2433.2,2433.1,4.10998]
[1728469749494,4.88355,2433.6,2433.1,4.10998]
[1728469749495,1.75454175,2433.4,2433.1,4.10998]
[1728469749924,0.05726071,2433.3,2433.1,4.10998]
[1728469750110,0.05726071,2433.3,2433.2,5.824105]
[1728469750309,0.05726071,2433.3,2433.2,7.57864675]
[1728469750533,1.75454175,2434.1,2433.7,4.10884]
[1728469750852,0.04980122,2434.0,2433.7,4.10884]
[1728469751010,1.80434297,2434.0,2433.7,4.10884]
[1728469751335,0.0499917,2433.9,2433.6,4.10911]
[1728469751501,0.0499917,2433.9,2433.5,8.21839]
[1728469752115,0.0499917,2433.9,2433.5,4.10918]
[1728469752745,0.0499917,2433.9,2433.5,8.2184]
[1728469753241,0.0499917,2433.9,2433.5,8.21839]
[1728469753739,0.0499917,2433.9,2433.5,4.10917]
[1728469753903,0.0499917,2433.9,2433.5,5.013147]
[1728469754632,0.0499917,2433.9,2433.5,9.122367]
[1728469755437,0.0499917,2433.9,2433.6,4.10911]
[1728469755811,0.0499917,2433.9,2433.8,0.754]
[1728469756258,0.05016621,2433.9,2433.8,0.754]
[1728469756445,0.8188,2434.2,2433.8,0.754]
[1728469756627,0.05021443,2434.1,2433.8,0.754]
[1728469757024,0.05021443,2434.1,2433.8,4.8628]
[1728469758146,0.05021443,2434.1,2433.8,4.94496763]
[1728469759056,0.05021443,2434.1,2433.9,4.10861]
[1728469759253,0.05021443,2434.1,2433.8,4.86278]
[1728469759456,0.05021443,2434.1,2433.8,5.759944]
[1728469761259,0.05021443,2434.1,2433.8,5.005944]
[1728469761463,3.84973135,2434.1,2433.6,4.10903]
[1728469761762,0.8194,2433.9,2433.6,4.10903]
[1728469762123,0.0504165,2433.8,2433.6,4.10903]
[1728469764158,0.0504165,2433.8,2433.4,4.86385]
[1728469764359,0.0504165,2433.8,2433.4,4.10935]
[1728469764528,4.1592265,2433.8,2433.4,4.10935]
[1728469765141,0.0504165,2433.8,2433.4,8.21872]
[1728469765734,0.42929336,2433.7,2433.4,8.21872]
[1728469765935,0.42929336,2433.7,2433.6,4.10913]
[1728469766133,0.42929336,2433.7,2433.6,4.93423]
[1728469774764,9.23362563,2434.3,2433.9,4.10847]
[1728469775680,9.23362563,2434.3,2434.0,4.10845]
[1728469776469,1.75362563,2434.3,2434.0,4.10845]
[1728469780075,0.05041507,2434.2,2433.9,4.1086]
[1728469780372,5.86158563,2434.3,2433.9,4.1086]
[1728469780581,0.05040264,2434.1,2433.9,4.1086]
[1728469780760,5.52920851,2434.4,2434.0,0.8161]
[1728469780761,4.75180851,2434.4,2434.0,0.8161]
[1728469780964,1.75362563,2434.2,2434.0,4.92455]
[1728469781279,2.56322563,2434.5,2434.2,4.10807]
[1728469782277,2.56322563,2434.5,2434.0,0.8161]
[1728469782278,1.75362563,2434.3,2434.0,4.10844]
[1728469784535,1.75362563,2434.3,2434.0,4.10837]
[1728469787862,0.8096,2434.5,2434.1,0.7888]
[1728469788091,2.56322563,2434.5,2434.2,4.10801]
[1728469791890,2.56322563,2434.5,2434.2,4.19016278]
[1728469792052,1.75362563,2434.5,2434.2,4.19016278]
[1728469792252,1.75362563,2434.5,2434.2,5.09888106]
[1728469795090,0.04969069,2434.4,2434.2,5.09888106]
[1728469796266,0.04969069,2434.4,2434.1,4.10828]
[1728469796267,0.86639069,2434.4,2434.1,4.10828]
[1728469796466,0.86639069,2434.4,2434.0,4.10834]
[1728469796687,4.97418069,2434.4,2434.0,4.10834]
[1728469796990,5.86158563,2434.3,2433.9,4.10855]
[1728469797176,5.86158563,2434.3,2433.8,4.10877]
[1728469797378,0.04970221,2434.2,2433.8,4.10877]
[1728469797554,0.8167,2434.1,2433.8,4.10877]
[1728469797754,0.04966494,2434.0,2433.8,4.10877]
[1728469797990,0.04966494,2434.0,2433.8,0.899803]
[1728469798188,0.04966494,2434.0,2433.7,4.10896]
[1728469798488,1.75362563,2433.9,2433.6,4.19117234]
[1728469798881,0.04960195,2433.8,2433.6,4.19117234]
[1728469800469,0.04960195,2433.8,2433.7,4.10896]
[1728469800671,0.04960195,2433.8,2433.7,5.01700323]
[1728469808464,0.04960195,2433.8,2433.6,4.109]
[1728469808809,0.04960195,2433.8,2433.5,4.10921]
[1728469809008,0.84690195,2433.8,2433.5,4.10921]
[1728469809196,0.84690195,2433.8,2433.5,4.19138736]
[1728469810089,0.84690195,2433.8,2433.7,4.10896]
[1728469810288,0.04960195,2433.8,2433.7,4.10896]
[1728469811715,0.04960195,2433.8,2433.6,4.1091]
[1728469811871,0.04960195,2433.8,2433.7,4.10896]
[1728469812401,0.04960195,2433.8,2433.6,8.21814]
[1728469813018,0.04960195,2433.8,2433.6,4.10904]
[1728469813175,0.04960195,2433.8,2433.6,5.02894624]
[1728469813373,0.04960195,2433.8,2433.7,4.10896]
[1728469814813,0.04960195,2433.8,2433.6,5.85590624]
[1728469815415,0.04960195,2433.8,2433.7,4.10896]
[1728469817316,0.811,2434.0,2433.7,4.10896]
[1728469817559,0.04948056,2433.8,2433.7,4.10896]
[1728469817818,8.21612,2434.3,2433.9,4.10863]
[1728469818118,0.755,2434.2,2433.9,4.10863]
[1728469818324,4.86313,2434.2,2433.8,4.10879]
[1728469818501,0.755,2434.2,2433.9,4.10855]
[1728469818709,0.755,2434.2,2433.8,0.08216888]
[1728469818710,4.86315,2434.2,2433.8,4.19083888]
[1728469818907,4.86315,2434.2,2433.8,4.10867]
[1728469819284,1.75362563,2434.1,2433.8,4.10867]
[1728469819914,1.75362563,2434.1,2433.7,4.10883]
[1728469820113,1.75362563,2434.1,2433.8,4.10878]
[1728469820487,0.04956528,2434.0,2433.8,4.10878]
[1728469822190,0.04956528,2434.0,2433.7,4.10893]
[1728469822583,0.7969,2433.9,2433.6,4.10911]
[1728469822805,0.04951046,2433.8,2433.6,4.10911]
[1728469824133,0.04951046,2433.8,2433.7,4.19113581]
[1728469824330,0.04951046,2433.8,2433.7,4.98273581]
[1728469824601,0.8222,2434.1,2433.9,4.10856]
[1728469825702,0.8222,2434.1,2433.7,9.00924]
[1728469825948,0.8222,2434.1,2433.8,4.10878]
[1728469826108,0.8222,2434.1,2433.9,4.1086]
[1728469829644,0.8222,2434.1,2434.0,4.10846]
[1728469830069,0.8222,2434.1,2433.8,8.21741]
[1728469830259,0.8222,2434.1,2433.8,9.21674376]
[1728469830563,0.8222,2434.1,2433.9,4.10862]
[1728469832133,0.8101,2434.3,2433.9,4.10862]
[1728469832720,0.8101,2434.3,2434.0,4.10836]
[1728469835861,0.04965194,2434.2,2433.9,4.10859]
[1728469836156,4.91806,2434.3,2433.9,4.10859]
[1728469836667,0.04965594,2434.2,2433.9,4.10859]
[1728469836821,0.04965594,2434.2,2433.9,5.10940738]
[1728469837022,4.91806,2434.3,2433.9,5.10940738]
[1728469837551,0.04970897,2434.2,2433.9,5.10940738]
[1728469837869,4.91806,2434.3,2433.9,5.10940738]
[1728469838073,0.04969254,2434.1,2433.9,5.10940738]
[1728469838363,0.0496801,2434.0,2433.9,5.10940738]
[1728469838964,4.91806,2434.3,2433.9,5.10940738]
[1728469839171,0.04970897,2434.2,2433.9,4.10859]
[1728469839372,4.91806,2434.3,2433.9,4.10859]
[1728469839666,0.04969295,2434.2,2433.9,4.10859]
[1728469840057,4.91806,2434.3,2433.9,4.10859]
[1728469840235,0.04968453,2434.1,2433.9,4.10859]
[1728469840432,4.91806,2434.3,2433.9,5.009474]
[1728469840632,0.04966809,2434.0,2433.9,4.10859]
[1728469840833,4.91806,2434.3,2433.9,4.10859]
[1728469841031,0.04966809,2434.0,2433.9,4.10859]
[1728469841279,4.91806,2434.3,2433.9,4.10859]
[1728469841753,0.04967836,2434.2,2433.9,4.10859]
[1728469841975,4.91806,2434.3,2433.9,4.10859]
[1728469842137,0.04968237,2434.2,2433.9,4.10859]
[1728469842336,4.91806,2434.3,2433.9,4.10859]
[1728469842717,0.04968237,2434.2,2433.9,4.10859]
[1728469843022,4.91806,2434.3,2433.9,4.10859]
[1728469843207,0.04966234,2434.2,2433.9,4.10859]
[1728469843371,4.91806,2434.3,2433.9,4.10859]
[1728469843576,0.04966234,2434.2,2433.9,4.10859]
[1728469843777,4.91806,2434.3,2433.9,4.10859]
[1728469843977,0.04964946,2434.2,2433.9,4.10859]
[1728469844221,4.91806,2434.3,2433.9,4.10859]
[1728469844525,0.0496599,2434.2,2433.9,4.10859]
[1728469845015,0.04963495,2434.1,2433.9,4.10859]
[1728469845315,0.8101,2434.3,2434.0,4.10846]
[1728469850527,0.04964531,2434.2,2434.0,4.10846]
[1728469850825,0.8101,2434.3,2434.0,4.10846]
[1728469851027,0.0496413,2434.2,2434.0,4.10846]
[1728469851230,0.8101,2434.3,2434.0,4.10846]
[1728469851433,0.04962528,2434.2,2434.0,4.10846]
[1728469851807,0.8101,2434.3,2434.0,4.10846]
[1728469852008,0.04962528,2434.2,2434.0,4.10846]
[1728469852334,0.8101,2434.3,2434.0,4.10846]
[1728469852535,0.04961685,2434.1,2434.0,4.10846]
[1728469853033,0.8101,2434.3,2434.0,4.10846]
[1728469853338,0.04962086,2434.1,2433.9,4.10859]
[1728469853491,1.75362563,2434.2,2433.9,4.10859]
[1728469853691,0.04949951,2434.0,2433.9,4.10859]
[1728469853896,1.75362563,2434.2,2433.9,8.21714]
[1728469854099,0.04951431,2434.0,2433.9,4.10855]
[1728469854339,1.75362563,2434.2,2433.9,4.10855]
[1728469854498,0.04951831,2434.0,2433.9,4.10855]
[1728469854702,1.75362563,2434.2,2433.9,4.10855]
[1728469854937,0.04951831,2434.0,2433.9,4.10855]
[1728469855150,1.75362563,2434.2,2433.9,4.10855]
[1728469855644,0.04951473,2434.1,2433.9,4.10855]
[1728469857210,0.04951473,2434.1,2433.8,4.10876]
[1728469857436,0.7748,2433.9,2433.6,4.10909]
[1728469857621,0.7748,2433.9,2433.7,4.10896]
[1728469857622,0.04947128,2433.8,2433.7,4.10896]
[1728469860149,0.04947128,2433.8,2433.4,4.92452]
[1728469860310,0.04947128,2433.8,2433.6,4.10906]
[1728469862182,1.80309691,2433.8,2433.6,4.10906]
[1728469865785,0.04947128,2433.8,2433.7,5.86258563]
[1728469865984,0.04947128,2433.8,2433.7,9.71196729]
[1728469866182,0.42946033,2434.9,2434.7,4.10728]
[1728469866387,0.8166,2435.0,2434.7,4.1072]
[1728469866688,0.8166,2435.0,2434.6,4.10741]
[1728469866689,1.75362563,2434.9,2434.6,4.10741]
[1728469866899,1.790161,2434.9,2434.7,4.10722]
[1728469868672,0.03653537,2434.9,2434.7,4.10728]
[1728469870063,0.03653537,2434.9,2434.8,4.10711]
[1728469870653,1.75362563,2435.1,2434.8,4.10711]
[1728469870853,0.03678068,2434.9,2434.8,4.10711]
[1728469871057,1.75362563,2435.1,2434.8,4.10711]
[1728469871296,0.03678068,2434.9,2434.8,4.10711]
[1728469871479,1.75362563,2435.1,2434.8,4.10711]
[1728469871681,0.03679112,2434.9,2434.8,4.10711]
[1728469871876,1.75362563,2435.1,2434.8,4.10711]
[1728469872085,0.03679112,2434.9,2434.8,4.10711]
[1728469872393,0.03677911,2434.9,2434.8,4.10711]
[1728469872595,1.75362563,2435.1,2434.8,4.10711]
[1728469873106,0.03679554,2435.0,2434.8,4.10711]
[1728469873657,0.03679554,2435.0,2434.7,4.10728]
[1728469873858,0.03679554,2435.0,2434.7,8.21446]
[1728469874072,0.03679554,2435.0,2434.7,5.01356014]
[1728469876801,0.03679554,2435.0,2434.7,5.01355014]
[1728469882427,4.14358554,2435.0,2434.5,0.7672]
[1728469882717,4.14358554,2435.0,2433.9,4.8724]
[1728469882718,4.10772,2434.5,2433.9,4.8724]
[1728469883013,7.10676,2435.1,2433.7,4.87267]
[1728469883014,1.75362563,2434.0,2433.7,4.87267]
[1728469883217,0.03691663,2433.9,2433.7,4.87267]
[1728469883387,0.03691663,2433.9,2433.7,5.77084]
[1728469883594,0.03691663,2433.9,2433.7,1.66197]
[1728469883789,0.03691663,2433.9,2433.8,4.1088]
[1728469884486,1.75362563,2434.2,2433.8,4.1088]
[1728469884688,0.03692064,2433.9,2433.8,4.1088]
[1728469884902,1.75362563,2434.2,2433.8,4.1088]
[1728469885123,0.03690061,2433.9,2433.8,5.096772]
[1728469885328,1.75362563,2434.2,2433.8,5.096772]
[1728469885487,0.03690461,2433.9,2433.8,5.096772]
[1728469885833,0.03690862,2433.9,2433.8,5.096772]
[1728469886121,5.86177563,2434.2,2433.8,5.096772]
[1728469886337,0.03691663,2433.9,2433.7,4.10895]
[1728469886490,1.75362563,2434.0,2433.7,8.21783]
[1728469886699,0.03690019,2433.8,2433.7,8.21775]
[1728469886899,0.7979,2434.1,2433.8,4.10871]
[1728469893842,0.7979,2434.1,2433.9,4.10861]
[1728469894003,0.7979,2434.1,2433.8,4.10871]
[1728469894841,1.75362563,2433.9,2433.5,0.8285]
[1728469895055,1.75362563,2433.7,2433.4,4.10935]
[1728469895208,10.77601563,2433.7,2433.3,0.8243]
[1728469895431,0.03659519,2433.6,2433.2,4.10978]
[1728469895631,0.03659519,2433.6,2433.2,4.93175]
[1728469895854,0.03659519,2433.6,2433.3,4.10963]
[1728469899272,5.86294563,2433.5,2433.1,4.87516]
[1728469899569,5.86294563,2433.5,2433.1,4.10986]
[1728469899771,0.03628287,2433.4,2433.1,4.10986]
[1728469899928,0.03628287,2433.4,2433.0,4.11012]
[1728469900133,2.53822563,2433.3,2432.9,4.88082]
[1728469900362,2.53822563,2433.3,2433.0,4.11001]
[1728469900529,0.03623794,2433.2,2433.0,4.11012]
[1728469900935,2.53822563,2433.3,2433.0,4.11012]
[1728469901133,0.03621228,2433.1,2433.0,4.11012]
[1728469901372,2.53822563,2433.3,2433.0,4.11012]
[1728469901573,0.03621628,2433.1,2433.0,4.11012]
[1728469901869,0.03622029,2433.1,2433.0,4.11012]
[1728469902037,2.53822563,2433.3,2433.0,4.11012]
[1728469902237,0.03624075,2433.2,2433.0,4.11012]
[1728469902432,2.53822563,2433.3,2433.0,4.11012]
[1728469902640,0.03624075,2433.2,2433.0,4.11012]
[1728469902880,2.53822563,2433.3,2433.0,4.11012]
[1728469903082,0.0362243,2433.1,2433.0,4.11012]
[1728469903282,2.53822563,2433.3,2433.0,4.11012]
[1728469903485,0.0362243,2433.1,2433.0,4.11007]
[1728469903643,2.53822563,2433.3,2433.0,4.11006]
[1728469903844,0.03624075,2433.2,2433.0,4.11006]
[1728469904057,2.53822563,2433.3,2433.0,4.11006]
[1728469904345,0.03622472,2433.2,2433.0,4.11006]
[1728469904911,0.03604641,2433.1,2433.0,8.22011]
[1728469905236,2.53822563,2433.3,2433.0,8.22011]
[1728469905585,0.03607088,2433.2,2433.0,8.22011]
[1728469905984,2.53822563,2433.3,2433.0,8.22011]
[1728469906284,2.53822563,2433.3,2433.0,4.11005]
[1728469906854,2.53822563,2433.3,2433.0,8.22012]
[1728469907069,2.53822563,2433.3,2433.0,4.11005]
[1728469907440,2.53822563,2433.3,2433.0,8.22012]
[1728469908693,2.53822563,2433.3,2433.0,4.11005]
[1728469908860,2.53822563,2433.3,2433.0,8.2201]
[1728469909190,2.53822563,2433.3,2433.0,4.11005]
[1728469909548,2.53822563,2433.3,2433.0,8.22011]
[1728469909747,2.53822563,2433.3,2433.0,5.009121]
[1728469911120,2.53822563,2433.3,2433.0,9.119201]
[1728469911328,2.53822563,2433.3,2433.0,5.009121]
[1728469912593,2.53822563,2433.3,2433.0,9.119191]
[1728469914130,1.75362563,2433.1,2432.8,4.11033]
[1728469916297,1.75362563,2433.1,2432.8,8.22074]
[1728469916507,1.75362563,2433.1,2432.8,4.11033]
[1728469920039,1.75362563,2433.1,2432.8,8.22069]
[1728469920739,0.7846,2433.3,2432.9,4.11028]
[1728469920952,2.53822563,2433.3,2432.9,4.11028]
[1728469921523,1.75362563,2433.3,2433.0,0.8053]
[1728469923655,0.7623,2433.5,2433.0,0.88749931]
[1728469923967,11.58923,2433.6,2433.2,4.1098]
[1728469923968,13.34285563,2433.6,2433.2,4.1098]
[1728469924191,5.86285563,2433.6,2433.2,4.1098]
[1728469925333,5.86285563,2433.6,2433.2,4.81778568]
[1728469925645,1.75362563,2433.6,2433.2,8.92751568]
[1728469925857,5.86253563,2433.8,2433.3,5.01611876]
[1728469926362,4.10918,2433.6,2433.3,0.8244]
[1728469926567,5.86280563,2433.6,2433.2,4.81771568]
[1728469926782,6.66620563,2433.6,2433.2,4.81771568]
[1728469927240,6.66620563,2433.6,2433.2,4.89990355]
[1728469928025,5.86280563,2433.6,2433.2,9.00960355]
[1728469928346,1.75362563,2433.6,2433.3,0.97895035]
[1728469928722,1.75362563,2433.6,2433.2,4.1097]
[1728469928723,1.75362563,2433.6,2433.2,8.30156784]
[1728469928953,1.75362563,2433.6,2433.2,8.21938]
[1728469929162,5.86279563,2433.6,2433.2,4.10968]
[1728469929362,5.86279563,2433.6,2433.2,4.19186791]
[1728469929560,1.75362563,2433.6,2433.2,8.30159791]
[1728469929866,5.86280563,2433.6,2433.2,4.10968]
[1728469930054,5.86280563,2433.6,2433.2,4.19186792]
[1728469931274,1.75362563,2433.6,2433.2,4.19186792]
[1728469931565,1.75362563,2433.6,2433.2,5.10004571]
[1728469933003,5.86277563,2433.6,2433.2,5.10004571]
[1728469933262,1.75362563,2433.4,2433.0,4.11003]
[1728469933860,1.75362563,2433.4,2433.1,4.10995]
[1728469934576,8.22015,2433.1,2432.6,4.11081]
[1728469934770,1.75362563,2432.8,2432.4,4.11115]
[1728469934981,1.75362563,2432.8,2432.3,0.7996]
[1728469935129,5.86418563,2432.8,2432.3,5.401929]
[1728469935463,4.11069,2432.7,2432.3,1.290699]
[1728469936427,5.86418563,2432.8,2432.3,5.401939]
[1728469936664,4.11073,2432.7,2432.3,1.290699]
[1728469937587,4.11073,2432.7,2432.3,0.7996]
[1728469937798,8.22151,2432.7,2432.3,0.7996]
[1728469938157,4.11073,2432.7,2432.3,0.7996]
[1728469939185,4.11083,2432.6,2432.3,0.7996]
[1728469939381,4.90943,2432.6,2432.1,0.8154]
[1728469939694,0.7986,2432.6,2432.2,0.08221988]
[1728469939858,4.11073,2432.7,2432.2,0.08221988]
[1728469940860,8.22154,2432.7,2432.2,0.08221988]
[1728469941794,8.22154,2432.7,2432.1,1.308113]
[1728469941795,5.86448563,2432.6,2432.1,1.308113]
[1728469944510,1.75362563,2432.6,2432.1,1.308113]
[1728469944673,4.111,2432.5,2432.2,0.9531593]
[1728469949402,4.111,2432.5,2432.2,1.03537945]
[1728469949572,1.75362563,2432.6,2432.1,0.8154]
[1728469949899,1.75362563,2432.6,2431.5,4.75362563]
[1728469949900,1.75362563,2432.2,2431.9,0.8071]
[1728469950095,4.1117,2432.1,2431.9,0.8071]
[1728469950471,5.86524563,2432.2,2431.9,0.8071]
[1728469956318,5.86524563,2432.2,2431.8,4.11215]
[1728469958025,4.90852,2432.4,2431.8,0.98132884]
[1728469958222,4.11099,2432.5,2432.1,4.11155]
[1728469958379,4.11099,2432.5,2432.2,0.08222099]
[1728469959013,0.75,2432.6,2432.2,4.97076099]
[1728469959219,8.22141,2432.7,2432.2,4.88854]
[1728469959446,4.11066,2432.7,2432.2,8.99997]
[1728469959735,4.11066,2432.7,2432.2,4.88853]
[1728469959736,8.22141,2432.7,2432.2,4.88853]
[1728469959892,1.75362563,2432.6,2432.2,4.88853]
[1728469960095,5.86444563,2432.6,2432.2,5.79677403]
[1728469960717,1.75362563,2432.6,2432.2,5.79677403]
[1728469961207,5.86454563,2432.6,2432.2,5.79677403]
[1728469962600,5.86454563,2432.6,2432.2,5.79539203]
[1728469962838,1.75362563,2432.6,2432.2,5.79538203]
[1728469964012,5.86454563,2432.6,2432.2,5.79538203]
[1728469964306,0.7517,2433.0,2432.3,0.66998129]
[1728469964507,11.1178397,2433.1,2432.5,4.11084]
[1728469964508,6.29310395,2433.1,2432.5,4.11084]
[1728469964807,5.86412563,2432.8,2432.2,4.11138]
[1728469965001,5.86412563,2432.8,2431.6,5.86602563]
[1728469965304,5.86412563,2432.8,2432.4,4.11115]
[1728469965727,5.86412563,2432.8,2432.4,4.87915]
[1728469965927,1.75362563,2432.8,2432.4,4.87915]
[1728469966346,5.86411563,2432.8,2432.4,4.87915]
[1728469966846,5.86411563,2432.8,2432.4,4.87916]
[1728469967143,5.86411563,2432.8,2432.4,4.87914]
[1728469967445,5.86411563,2432.8,2432.4,0.768]
[1728469968135,5.86411563,2432.8,2432.4,4.87911]
[1728469968340,1.75362563,2432.8,2432.4,4.96132468]
[1728469969751,1.75362563,2432.8,2432.4,4.87911]
[1728469970615,1.75362563,2432.8,2432.6,4.11081]
[1728469970814,0.7517,2433.0,2432.7,4.11058]
[1728469971014,2.18296395,2433.1,2432.8,4.11048]
[1728469971236,2.18296395,2433.1,2432.7,0.7907]
[1728469971465,2.18296395,2433.1,2432.7,4.90134]
[1728469971746,2.16549795,2433.1,2432.7,4.90134]
[1728469971950,2.16549795,2433.1,2432.9,4.11024]
[1728469971951,0.41187232,2433.1,2432.9,4.11024]
[1728469972617,0.41187232,2433.1,2432.8,4.11039]
[1728469972819,0.41187232,2433.1,2432.8,4.19259089]
[1728469973043,0.41187232,2433.1,2432.8,4.78104148]
[1728469973349,0.41187232,2433.1,2432.8,8.89146148]
[1728469973647,0.41187232,2433.1,2432.8,4.69884059]